Cogmind - Beta 14 @@@ ROGUE MODE // 2024.10.01 @ 09:01:11 Player: Mallow Result: Destroyed by G-67 Veteran with Field Laser Performance ------------- Evolutions (5) 2500 Regions Visited (16) 3200 Robots Destroyed (121) 605 Value Destroyed (5033) 5033 Prototype IDs (7) 140 Alien Tech Used (0) 0 Bonus (-467) -467 TOTAL SCORE: 11011 Bonus ------- High Alert Combat Kills 300 Follower Combat Kills 713 Met R17 at Cetus 500 Friendly Fire -1980 Cogmind --------- Core Integrity 0/1000 Matter 17/300 Energy 98/100 System Corruption 32% Temperature Cool (12) Movement Core (50) Location -5/Upper Caves Parts ------- > --- POWER (1) -------- (None) > --- PROPULSION (4) --- (None) > --- UTILITY (10) ----- (None) > --- WEAPON (2) ------- (None) > --- INVENTORY (5) ---- Quantum Reactor Improved Target Analyzer Improved Medium Armor Plating Improved System Shield Peak State ------------ > --- POWER ------------ Quantum Reactor > --- PROPULSION ------- Centrium Heavy Treads Centrium Heavy Treads > --- UTILITY ---------- Medium Storage Unit Target Analyzer Centrium Medium Armor Plating Centrium Medium Armor Plating Medium Regenerative Plating Hacking Suite Improved Hacking Suite Improved Hacking Suite Improved System Shield Improved System Shield > --- WEAPON ----------- Advanced KE Penetrator Phasing Sabre > --- INVENTORY -------- Quantum Reactor Improved Medium Armor Plating Centrium Medium Armor Plating Improved Hacking Suite Improved System Shield Heavy Missile Launcher Scatter Rocket Array [Rating: 115] Favorites ----------- Power Antimatter Reactor Engine Ion Engine Power Core Light Fission Core Reactor Antimatter Reactor Propulsion Light Treads Treads Light Treads Leg Myomer Leg Wheel Wheel Flight Unit Cooled VTOL Module Utility Hacking Suite Device Dynamic Insulation System Storage Medium Storage Unit Processor Terrain Scan Processor Hackware Hacking Suite Protection Centrium Medium Armor Plating Weapon Bore Cannon Energy Gun Heavy Laser Ballistic Gun Advanced KE Penetrator Ballistic Cannon Bore Cannon Launcher Heavy Missile Launcher Impact Weapon Great Maul Slashing Weapon Phasing Sabre Piercing Weapon Kinetic Spear Build | -11 -10 -10 -10 -8 -7 -7 -7 -6 -6 -6 -6 -6 -6 -6 -5 -5 ------- Run | Yrd Mat Min Sub Mat Fac Low Low Fac Was Fac Ext Cet Arc Hub Fac Upp Slots Evolved 10 | . . . . 4 2 . . 2 . . . . . . 2 . Power . | . . . . . . . . . . . . . . . . . Propulsion 2 | . . . . 2 . . . . . . . . . . . . Utility 8 | . . . . 2 2 . . 2 . . . . . . 2 . Weapon . | . . . . . . . . . . . . . . . . . Parts Attached 143 | 6 2 . 10 26 5 2 2 . 24 7 20 13 6 2 17 1 Power 10 | 1 . . 2 2 . . . . 2 . 2 1 . . . . Engine 7 | 1 . . 2 2 . . . . 1 . 1 . . . . . Core 1 | . . . . . . . . . . . 1 . . . . . Reactor 2 | . . . . . . . . . 1 . . 1 . . . . Propulsion 38 | 2 . . 3 12 1 . . . 8 1 6 3 . . 2 . Treads 18 | 2 . . 1 1 . . . . 7 1 2 3 . . 1 . Leg 8 | . . . . 5 . . . . . . 3 . . . . . Wheel 6 | . . . 2 3 . . . . . . 1 . . . . . Hover . | . . . . . . . . . . . . . . . . . Flight 6 | . . . . 3 1 . . . 1 . . . . . 1 . Utility 54 | 1 2 . 1 5 3 . . . 11 3 8 3 5 2 10 . Device 12 | . . . . 3 1 . . . 4 1 2 . 1 . . . Storage 5 | 1 2 . . . . . . . . 1 1 . . . . . Processor 7 | . . . . . 1 . . . . 1 3 . . . 2 . Hackware 8 | . . . . . 1 . . . 1 . . . 2 1 3 . Protection 22 | . . . 1 2 . . . . 6 . 2 3 2 1 5 . Artifact . | . . . . . . . . . . . . . . . . . Weapon 41 | 2 . . 4 7 1 2 2 . 3 3 4 6 1 . 5 1 Energy Gun 2 | . . . . 1 . . 1 . . . . . . . . . Energy Cannon . | . . . . . . . . . . . . . . . . . Ballistic Gun 15 | 2 . . 1 4 . . . . . . . 4 1 . 2 1 Ballistic Cannon 7 | . . . 3 . . . . . 1 1 2 . . . . . Launcher 12 | . . . . 1 1 1 1 . 1 2 2 . . . 3 . Special Weapon . | . . . . . . . . . . . . . . . . . Impact Weapon 2 | . . . . 1 . 1 . . . . . . . . . . Slashing Weapon 2 | . . . . . . . . . . . . 2 . . . . Piercing Weapon 1 | . . . . . . . . . 1 . . . . . . . Special Melee Weapon . | . . . . . . . . . . . . . . . . . Unidentified Prototypes 7 | . . . . . 1 . . . 1 1 1 3 . . . . Parts Lost 57 | . . . 4 11 6 1 . . . 2 7 4 . 1 16 5 Power 4 | . . . 1 1 . . . . . . . 1 . . 1 . Propulsion 21 | . . . 2 6 3 . . . . . 4 3 . . 2 1 Utility 20 | . . . . 2 1 1 . . . 1 1 . . 1 10 3 Weapon 12 | . . . 1 2 2 . . . . 1 2 . . . 3 1 Highest Loss Streak 12 | . . . 1 6 5 1 . . . 1 5 3 . 1 12 5 To Critical Strikes 2 | . . . . . . . . . . . 1 1 . . . . Average Slot Usage (%) 82 | . 85 85 91 81 45 32 23 20 82 85 92 88 85 85 82 17 Engine 4 | . 14 14 13 7 4 . . . 1 . 3 4 . . . . Reactor 2 | . . . . . . . . . 4 6 1 1 6 6 4 . Treads 14 | . 28 28 26 3 4 . . . 12 13 19 6 13 13 8 . Leg 1 | . . . . 10 . . . . . . . 9 . . . . Flight 1 | . . . . 5 13 7 7 6 . . . . . . . 2 Device 5 | . . . . 9 8 6 . . 12 7 10 1 . . . . Storage 6 | . 14 14 14 7 . . . . . 5 6 6 6 6 4 . Processor 6 | . . . . . 6 7 7 6 6 6 15 20 13 8 6 . Hackware 11 | . . . . . 2 7 7 6 11 13 13 13 18 24 28 11 Protection 11 | . . . 9 10 . . . . 18 18 6 11 13 11 14 . Ballistic Gun 5 | . 28 28 12 4 . . . . . . . 6 6 6 4 2 Ballistic Cannon 4 | . . . 11 6 . . . . 5 6 4 . . . . . Launcher 2 | . . . . . 3 . . . 5 5 6 . . . . . Slashing Weapon 1 | . . . . . . . . . . . . 4 6 6 4 . Peak Build Rating 115 | 6 7 6 16 27 19 16 15 11 75 73 74 105 106 104 115 30 Average Rating 57 | 3 6 6 11 21 13 12 11 11 68 68 68 88 104 103 103 20 On Entrance 37 | . 6 6 6 16 16 12 11 11 11 73 72 66 105 104 99 23 Naked Turns 5 | . . . . . . . . . . . . . . . . 5 Heaviest Build 88 | 13 28 18 25 43 13 3 7 . 68 88 86 56 56 54 62 6 Greatest Support 160 | 40 40 40 40 43 20 5 5 5 140 140 117 160 160 160 160 6 Greatest Overweight (x) 6 | 3 . . 2 6 1 . 1 . . . 1 . . . . . Average Overweight (x) . | . . . . . . . . . . . . . . . . . Largest Inventory Capacity 20 | 8 10 10 10 10 5 5 5 5 5 20 20 10 10 10 10 5 Average Capacity 10 | 7 8 10 10 8 5 5 5 5 5 17 18 10 10 10 9 5 Most Carried 20 | 1 5 8 10 10 5 5 5 5 5 20 20 10 10 10 8 4 Average Carried 9 | . 3 5 9 7 4 4 4 5 4 13 18 9 9 9 6 4 Final Capacity 20 | 8 10 10 10 5 5 5 5 5 5 20 10 10 10 10 5 5 Final Carried 20 | 1 5 8 10 5 5 5 5 5 5 20 7 10 10 9 5 4 Class Distribution -------------------- 55% | Scavenger-Mutant 30% | Mutant 7% | Hacker-Mutant 5% | Commander-Mutant Dominant Class ---------------- Mutant | -10/Materials Mutant | -10/Mines Mutant | -10/Subcaves Scavenger-Mutant | -8/Materials Mutant | -7/Factory Mutant | -7/Lower Caves Mutant | -7/Lower Caves Mutant | -6/Factory Scavenger-Mutant | -6/Waste Scavenger-Mutant | -6/Factory Commander-Mutant | -6/Extension Scavenger-Mutant | -6/Cetus Scavenger-Mutant | -6/Archives Scavenger-Mutant | -6/Hub_04(d) Scavenger-Mutant | -5/Factory Hacker-Mutant | -5/Upper Caves Resources | -11 -10 -10 -10 -8 -7 -7 -7 -6 -6 -6 -6 -6 -6 -6 -5 -5 ----------- Run | Yrd Mat Min Sub Mat Fac Low Low Fac Was Fac Ext Cet Arc Hub Fac Upp Matter Collected 3774 | 260 64 11 283 326 9 245 70 . 451 463 734 411 180 . 267 . Remotely . | . . . . . . . . . . . . . . . . . Salvage Created 4844 | . 69 11 121 361 56 30 . . 570 548 906 574 628 309 661 . Parts 240 | . 5 4 9 23 5 1 . . 3 30 38 27 48 10 37 . Haulers Intercepted 1 | . . . . . . . . . . . 1 . . . . . Recyclers Shooed 4 | . . . . . . . . . . 2 2 . . . . . Parts Field Recycled . | . . . . . . . . . . . . . . . . . Retrieved Matter . | . . . . . . . . . . . . . . . . . Parts Self-Destructed 12 | . . . 10 . . 2 . . . . . . . . . . Prevented . | . . . . . . . . . . . . . . . . . Kills | -11 -10 -10 -10 -8 -7 -7 -7 -6 -6 -6 -6 -6 -6 -6 -5 -5 ------- Run | Yrd Mat Min Sub Mat Fac Low Low Fac Was Fac Ext Cet Arc Hub Fac Upp Combat Hostiles Destroyed 80 | . 2 . 5 13 1 3 . . . 10 9 8 4 5 20 . Melee 5 | . . . . 1 . . . . . . . . . 3 1 . Guns 29 | . 2 . 1 4 . . . . . . . 8 4 2 8 . Cannons 17 | . . . 4 5 . . . . . 5 3 . . . . . AOE 28 | . . . . 2 1 3 . . . 5 6 . . . 11 . Classes Destroyed 15 | . 1 1 1 4 2 . . . . 1 3 . 1 1 . . Worker 7 | . . . . 1 . . . . . 2 4 . . . . . Builder 11 | . . 1 . 1 . . . . . 2 4 . . . 3 . Tunneler 1 | . . . . . . . . . . . 1 . . . . . Hauler 1 | . . . . . . . . . . . 1 . . . . . Recycler 4 | . . . . . . . . . . 2 2 . . . . . Mechanic 1 | . . . . 1 . . . . . . . . . . . . Operator 10 | . . . . . . . . . . . . . 9 . 1 . Watcher 2 | . . . . . 1 . . . . 1 . . . . . . Swarmer 18 | . . . . 4 . 3 . . . 3 . . . . 8 . Grunt 28 | . 2 . . 7 . . . . . 4 5 . . 4 6 . Sentry 10 | . . . . 2 . . . . . . 4 . 4 . . . Hunter 3 | . . . . . . . . . . . . . . 1 2 . Programmer 8 | . . . . . 1 . . . . 3 . . . . 4 . Cetus Guard 8 | . . . . . . . . . . . . 8 . . . . Subdweller 5 | . . . 5 . . . . . . . . . . . . . Thug 2 | . . . . . . . . . . . 2 . . . . . Savage 1 | . . . . . . . . . . . 1 . . . . . Best Kill Streak 8 | . 1 1 2 4 2 3 . . . 7 8 4 3 3 6 . Combat Bots Only 5 | . 1 . 2 3 1 3 . . . 4 4 4 2 3 5 . Max Kills in Single Turn 7 | . 1 1 1 2 2 2 . . . 4 7 1 1 1 4 . Gunslinging . | . . . . . . . . . . . . . . . . . Exploded 4 | . . . . 1 1 2 . . . 1 4 . . . 4 . Melee 1 | . . . . 1 . . . . . . . . . 1 1 . Uniques/NPCs Destroyed 1 | . . . . . . . . . . . 1 . . . . . A7 (-6/Extension) Combat | -11 -10 -10 -10 -8 -7 -7 -7 -6 -6 -6 -6 -6 -6 -6 -5 -5 -------- Run | Yrd Mat Min Sub Mat Fac Low Low Fac Was Fac Ext Cet Arc Hub Fac Upp Hostile Shots Fired 1011 | . 28 . 32 187 92 36 4 . . 86 86 86 55 56 211 52 Missed 330 | . 4 . 6 42 49 18 2 . . 25 24 30 21 18 65 26 Damage Taken 13773 | . 265 . 690 2001 542 301 85 . . 1276 1173 1474 824 631 3992 519 Core 2603 | . 31 . 72 293 267 252 85 . . 102 139 183 97 75 654 353 Absorbed by Shields 9 | . . . . . . . . . . . 9 . . . . . Reduced by Siege Mode 22 | . . . . . . . . . . . . 22 . . . . Redirected to Shielding 87 | . . . . . . . . . . 87 . . . . . . Ignored by Resistances 163 | . . . . . . . . . . . 118 45 . . . . Regen/Repaired (Parts) 509 | . . . . . . . . . . . 107 58 . . 344 . Core Remaining (%) 49 | 100 . . 58 46 . . 13 . . . . . . 29 . . Volleys Fired 313 | . 17 1 28 58 1 3 2 . 19 37 20 33 27 16 51 . Largest 2 | . 2 2 2 2 1 1 1 . 1 1 2 2 1 1 1 . Hottest 107 | . 40 40 78 78 36 39 50 . 57 57 107 70 35 35 50 . Shots Fired 408 | . 34 2 51 89 1 3 2 . 19 38 24 52 28 16 49 . Gun 235 | . 34 2 25 34 . . 1 . . . . 52 28 16 43 . Cannon 141 | . . . 26 50 . . . . 19 30 16 . . . . . Launcher 32 | . . . . 5 1 3 1 . . 8 8 . . . 6 . Special . | . . . . . . . . . . . . . . . . . Kinetic 363 | . 34 2 51 72 . . . . 19 30 16 52 28 16 43 . Thermal 12 | . . . . 12 . . . . . . . . . . . . Explosive 32 | . . . . 5 1 3 1 . . 8 8 . . . 6 . Electromagnetic 1 | . . . . . . . 1 . . . . . . . . . Robot Hit Streak 28 | . 4 2 20 28 6 1 1 . 4 5 5 15 16 8 4 . Robot Miss Streak 27 | . 2 . 1 5 . 2 2 . 2 13 27 3 3 2 15 . Penetration Max 1 | . . . . . . . . . . . 1 1 1 . . . Secondary Targets 5 | . 1 . . 1 . . . . . . . 3 . . . . Max Gunslinging Chain 1 | . 1 . . 1 . . . . . . . 1 . . . . Shots Hit Robots 303 | . 19 1 47 57 1 1 1 . 13 16 14 39 37 22 35 . Core Hits 271 | . 5 1 11 26 4 4 1 . 6 32 83 20 16 8 54 . Critical Kills 26 | . . . . . . . . . 5 3 2 6 2 2 6 . Critical Parts Destroyed 26 | . . . . . . . . . 5 2 4 8 1 4 2 . Critical Strikes 60 | . . . 1 3 . . . . 10 5 6 14 6 7 8 . Burn 1 | . . . . 1 . . . . . . . . . . . . Destroy 54 | . . . . . . . . . 10 5 6 14 5 6 8 . Blast 3 | . . . 1 2 . . . . . . . . . . . . Sever 2 | . . . . . . . . . . . . . 1 1 . . Melee Attacks 50 | . . . . 6 . . . . . . . 1 17 19 7 . Impact 6 | . . . . 6 . . . . . . . . . . . . Slashing 44 | . . . . . . . . . . . . 1 17 19 7 . Piercing . | . . . . . . . . . . . . . . . . . Sneak Attacks 12 | . . . . . . . . . . . . . 11 . 1 . Combat Hostiles . | . . . . . . . . . . . . . . . . . Follow-up Attacks . | . . . . . . . . . . . . . . . . . Damage Inflicted 14648 | . 192 15 808 1761 169 262 44 . 418 1490 2902 1126 1962 747 2752 . Guns 3646 | . 190 15 297 355 . . . . . . . 1076 554 308 851 . Cannons 2068 | . . . 511 611 . . . . 418 235 293 . . . . . Explosions 6451 | . . . . 617 159 262 44 . . 1239 2588 . . . 1542 . Melee 2434 | . . . . 178 . . . . . . . 50 1408 439 359 . Ramming 49 | . 2 . . . 10 . . . . 16 21 . . . . . Kinetic 5566 | . 190 15 808 818 . . . . 418 235 293 1076 554 308 851 . Thermal 321 | . . . . 148 . . . . . . . . . . 173 . Explosive 6278 | . . . . 617 159 262 44 . . 1239 2588 . . . 1369 . Electromagnetic . | . . . . . . . . . . . . . . . . . Impact 178 | . . . . 178 . . . . . . . . . . . . Slashing 2256 | . . . . . . . . . . . . 50 1408 439 359 . Piercing . | . . . . . . . . . . . . . . . . . Highest Corruption 32 | . . . . . 2 2 2 . . 3 3 3 3 . 29 32 Average Corruption 3 | . . . . . 1 2 2 . . 2 3 3 2 . 11 30 Corruption Purged 3 | . . . . . . . . . . . . . 3 . . . Corruption Blocked . | . . . . . . . . . . . . . . . . . Effects 85 | . . . . . 2 6 1 . . 17 21 8 2 . 21 7 Message Errors 20 | . . . . . 1 1 . . . 2 7 3 1 . 5 . Matter Fused 18 | . . . . . . 1 . . . 4 3 5 . . 3 2 Heat Flow Errors 8 | . . . . . . . . . . 1 4 . . . 3 . Energy Discharges 9 | . . . . . . . . . . 2 4 . . . 2 1 Parts Rejected 3 | . . . . . 1 1 . . . 1 . . . . . . Data Loss (minor) 10 | . . . . . . 1 1 . . 2 2 . . . 4 . Data Loss (major) 5 | . . . . . . 2 . . . 2 . . . . 1 . Misfires 4 | . . . . . . . . . . 2 1 . 1 . . . Misdirections 5 | . . . . . . . . . . . . . . . 1 4 Weapon Failures 3 | . . . . . . . . . . 1 . . . . 2 . Overload Shots . | . . . . . . . . . . . . . . . . . Overflow Damage 743 | . . . . 38 . 39 . . . 39 34 15 439 31 108 . Projectiles 14 | . . . . 14 . . . . . . . . . . . . Explosions 139 | . . . . 17 . 39 . . . 39 34 . . . 10 . Melee 590 | . . . . 7 . . . . . . . 15 439 31 98 . Knockbacks 28 | . . . 8 7 . . . . 4 5 4 . . . . . Impact 1 | . . . . . . . . . . 1 . . . . . . Kinetic 25 | . . . 8 6 . . . . 4 4 3 . . . . . Secondary 2 | . . . . 1 . . . . . . 1 . . . . . Self-Inflicted Damage 925 | . . . . 15 . . 59 . . 217 297 . . . 337 . Shots 35 | . . . . 1 . . 1 . . 7 14 . . . 12 . Rammed 9 | . 2 . . 1 3 . . . . 1 2 . . . . . Targets Rammed 11 | . 2 . . 1 3 . . . . 2 3 . . . . . Kicked . | . . . . . . . . . . . . . . . . . Crushed 2 | . . . . . . . . . . 1 1 . . . . . Highest Temperature 489 | . 18 . 233 489 . . . . 90 375 258 6 3 10 219 . Average Temperature 98 | . 8 . 144 173 . . . . 29 89 85 4 3 3 62 . Received Heat Transfer 3156 | . 144 . 373 891 129 27 . . . 346 174 108 126 261 319 258 Effects 12 | . . . . 11 . . . . . 1 . . . . . . Shutdowns 3 | . . . . 2 . . . . . 1 . . . . . . Energy Bleed 3 | . . . . 3 . . . . . . . . . . . . Interference 1 | . . . . 1 . . . . . . . . . . . . Matter Decay 1 | . . . . 1 . . . . . . . . . . . . Short Circuit 2 | . . . . 2 . . . . . . . . . . . . Damage (major) 2 | . . . . 2 . . . . . . . . . . . . Siege Activations 1 | . . . . . . . . . . . . 1 . . . . Total Turns 18 | . . . . . . . . . . . . 18 . . . . Longest Duration 18 | . . . . . . . . . . . . 18 . . . . Robots Corrupted 1 | . . . . 1 . . . . . . . . . . . . Combat Hostiles 1 | . . . . 1 . . . . . . . . . . . . Parts Fried 2 | . . . . 1 . . . . . . 1 . . . . . Impact Corruptions 1 | . . . . 1 . . . . . . . . . . . . Robots Melted . | . . . . . . . . . . . . . . . . . Combat Hostiles . | . . . . . . . . . . . . . . . . . Parts Melted 1 | . . . 1 . . . . . . . . . . . . . Heat Transferred 507 | . . . . 407 . . . . . . . . . . 100 . Parts Sabotaged . | . . . . . . . . . . . . . . . . . Parts Stolen 1 | . . . . . . . 1 . . . . . . . . . Parts Stripped . | . . . . . . . . . . . . . . . . . Power Chain Reactions . | . . . . . . . . . . . . . . . . . Alert | -11 -10 -10 -10 -8 -7 -7 -7 -6 -6 -6 -6 -6 -6 -6 -5 -5 ------- Run | Yrd Mat Min Sub Mat Fac Low Low Fac Was Fac Ext Cet Arc Hub Fac Upp Peak Influence 779 | . 40 16 . 230 120 . . 56 19 349 779 529 287 283 726 . Initial 356 | . . 11 . . 79 . . 56 19 . 129 356 131 40 65 . Average 150 | . 16 11 . 93 82 . . 56 5 76 382 430 184 163 234 . Maximum Alert Level 3 | . . . . 1 . . . . . 1 3 2 1 1 3 . Low Security (%) 67 | 100 100 100 . 93 100 . . 100 100 83 14 . 54 63 42 . Level 1 23 | . . . . 6 . . . . . 16 53 26 45 36 45 . Level 2 7 | . . . . . . . . . . . 15 73 . . 10 . Level 3 2 | . . . . . . . . . . . 16 . . . 1 . Level 4 . | . . . . . . . . . . . . . . . . . Level 5 . | . . . . . . . . . . . . . . . . . High Security . | . . . . . . . . . . . . . . . . . Max Security . | . . . . . . . . . . . . . . . . . Squads Dispatched 19 | . . . . 1 1 . . . . 8 2 . . 3 4 . Investigation 4 | . . . . . . . . . . 2 . . . 1 1 . Extermination 5 | . . . . . . . . . . 3 . . . . 2 . Reinforcement 9 | . . . . 1 . . . . . 3 2 . . 2 1 . Assault 1 | . . . . . 1 . . . . . . . . . . . Garrison . | . . . . . . . . . . . . . . . . . Intercept . | . . . . . . . . . . . . . . . . . Searches Triggered . | . . . . . . . . . . . . . . . . . Construction Impeded 4 | . . . . . . . . . . 1 2 . . . 1 . Haulers Reinforced . | . . . . . . . . . . . . . . . . . Active Scanning Responses . | . . . . . . . . . . . . . . . . . Cargo Convoy Interrupts . | . . . . . . . . . . . . . . . . . Stealth | -11 -10 -10 -10 -8 -7 -7 -7 -6 -6 -6 -6 -6 -6 -6 -5 -5 --------- Run | Yrd Mat Min Sub Mat Fac Low Low Fac Was Fac Ext Cet Arc Hub Fac Upp Distress Signals 8 | . . . . 1 . . . . . 1 4 . . 2 . . Communications Jammed . | . . . . . . . . . . . . . . . . . Distress Signals . | . . . . . . . . . . . . . . . . . Times Spotted 195 | . 5 . 6 23 6 11 2 . . 19 32 10 14 24 32 11 Peak Tracking Total 9 | . 2 . 2 6 5 4 1 . . 4 4 5 2 6 9 8 Tactical Retreats 13 | . . . . 3 2 2 . . . 1 . . . 2 2 1 Traps | -11 -10 -10 -10 -8 -7 -7 -7 -6 -6 -6 -6 -6 -6 -6 -5 -5 ------- Run | Yrd Mat Min Sub Mat Fac Low Low Fac Was Fac Ext Cet Arc Hub Fac Upp Traps Triggered 6 | . . . 1 . 1 . . 1 . 1 . . . . 2 . Indirectly . | . . . . . . . . . . . . . . . . . Trap Hack Attempts . | . . . . . . . . . . . . . . . . . Triggered . | . . . . . . . . . . . . . . . . . Disarmed . | . . . . . . . . . . . . . . . . . Reprogrammed . | . . . . . . . . . . . . . . . . . Reused . | . . . . . . . . . . . . . . . . . Traps Extracted . | . . . . . . . . . . . . . . . . . Installed . | . . . . . . . . . . . . . . . . . Triggered 1 | . . . . . . . 1 . . . . . . . . . Machines | -11 -10 -10 -10 -8 -7 -7 -7 -6 -6 -6 -6 -6 -6 -6 -5 -5 ---------- Run | Yrd Mat Min Sub Mat Fac Low Low Fac Was Fac Ext Cet Arc Hub Fac Upp Machines Disabled 26 | . . . . 1 1 . . . . 7 . . 1 2 14 . Max in Single Turn 8 | . . . . 1 1 . . . . 2 . . 1 1 8 . Garrison Access 3 | . . . . 1 1 . . . . . . . . . 1 . Machines Repaired . | . . . . . . . . . . . . . . . . . Machines Dismantled . | . . . . . . . . . . . . . . . . . Machines Sabotaged . | . . . . . . . . . . . . . . . . . Overloaded Fab Kills . | . . . . . . . . . . . . . . . . . Hacking | -11 -10 -10 -10 -8 -7 -7 -7 -6 -6 -6 -6 -6 -6 -6 -5 -5 --------- Run | Yrd Mat Min Sub Mat Fac Low Low Fac Was Fac Ext Cet Arc Hub Fac Upp Machines Accessed 34 | . . . . 5 3 . . 1 . 9 5 3 1 3 4 . Terminals 21 | . . . . 1 2 . . 1 . 5 5 3 . 3 1 . Fabricators 2 | . . . . . . . . . . 1 . . . . 1 . Repair Stations 3 | . . . . 2 . . . . . 1 . . . . . . Recycling Units 3 | . . . . 1 1 . . . . 1 . . . . . . Scanalyzers 2 | . . . . . . . . . . 1 . . . . 1 . Garrison Access 2 | . . . . 1 . . . . . . . . . . 1 . Total Hacks 109 | . . . . 6 7 . . 1 . 24 11 8 25 5 22 . Successful 75 | . . . . 3 3 . . 1 . 14 5 5 25 3 16 . Failed 34 | . . . . 3 4 . . . . 10 6 3 . 2 6 . Catastrophic 2 | . . . . 1 . . . . . 1 . . . . . . Database Lockouts . | . . . . . . . . . . . . . . . . . Manual 5 | . . . . . . . . . . 2 . 1 1 1 . . Terminals 48 | . . . . 1 5 . . 1 . 12 11 8 . 5 5 . Fabricators 5 | . . . . . . . . . . 1 . . . . 4 . Repair Stations 3 | . . . . 2 . . . . . 1 . . . . . . Recycling Units 7 | . . . . 1 2 . . . . 4 . . . . . . Scanalyzers 18 | . . . . . . . . . . 6 . . . . 12 . Garrison Access 3 | . . . . 2 . . . . . . . . . . 1 . Terminal Hacks 49 | . . . . . 2 . . 1 . 6 5 5 25 2 3 . Record 34 | . . . . . . . . . . . 2 4 25 . 3 . Open Door 5 | . . . . . . . . . . 1 3 1 . . . . Level Access Points 1 | . . . . . . . . . . 1 . . . . . . Branch Access Points 3 | . . . . . . . . 1 . 1 . . . 1 . . Alert Level 1 | . . . . . . . . . . 1 . . . . . . Unreport Threat 1 | . . . . . 1 . . . . . . . . . . . Locate Traps 1 | . . . . . . . . . . 1 . . . . . . Recall Reinforcements 1 | . . . . . . . . . . . . . . 1 . . Hauler Manifests 1 | . . . . . 1 . . . . . . . . . . . Zone Layout 1 | . . . . . . . . . . 1 . . . . . . Fabricator Hacks 4 | . . . . . . . . . . 1 . . . . 3 . Network Status 1 | . . . . . . . . . . 1 . . . . . . Load Schematic 1 | . . . . . . . . . . . . . . . 1 . Build 2 | . . . . . . . . . . . . . . . 2 . Repair Station Hacks 2 | . . . . 1 . . . . . 1 . . . . . . Scan Component 1 | . . . . . . . . . . 1 . . . . . . Refit 1 | . . . . 1 . . . . . . . . . . . . Recycling Unit Hacks 5 | . . . . 1 1 . . . . 3 . . . . . . Process 1 | . . . . . . . . . . 1 . . . . . . Retrieve Matter 1 | . . . . . . . . . . 1 . . . . . . Retrieve Components 3 | . . . . 1 1 . . . . 1 . . . . . . Scanalyzer 12 | . . . . . . . . . . 3 . . . . 9 . Insert Component 4 | . . . . . . . . . . 2 . . . . 2 . Analyze 8 | . . . . . . . . . . 1 . . . . 7 . Garrison Access Hacks 2 | . . . . 1 . . . . . . . . . . 1 . Seal Access 2 | . . . . 1 . . . . . . . . . . 1 . Unauthorized Hacks 1 | . . . . . . . . . . . . . . 1 . . Terminals 1 | . . . . . . . . . . . . . . 1 . . Sabotage 1 | . . . . . . . . . . . . . . 1 . . Fabricators . | . . . . . . . . . . . . . . . . . Repair Stations . | . . . . . . . . . . . . . . . . . Recycling Units . | . . . . . . . . . . . . . . . . . Scanalyzers . | . . . . . . . . . . . . . . . . . Garrison Access . | . . . . . . . . . . . . . . . . . Data Cores Recovered . | . . . . . . . . . . . . . . . . . Used . | . . . . . . . . . . . . . . . . . Hacking Detections 22 | . . . . 3 2 . . 1 . 6 3 2 . 2 3 . Full Trace Events 3 | . . . . . . . . . . 2 . . . . 1 . Feedback Events . | . . . . . . . . . . . . . . . . . Feedback Blocked . | . . . . . . . . . . . . . . . . . Robot Schematics Acquired . | . . . . . . . . . . . . . . . . . Robots Built 2 | . . . . . . . . . . . . . . . 2 . Authchips . | . . . . . . . . . . . . . . . . . Time 76 | . . . . . . . . . . . . . . . 76 . Total Robot Build Rating 10 | . . . . . . . . . . . . . . . 10 . Part Schematics Acquired 1 | . . . . . . . . . . . . . . . 1 . Parts Built 1 | . . . . . . . . . . . . . . . 1 . Authchips . | . . . . . . . . . . . . . . . . . Time 102 | . . . . . . . . . . . . . . . 102 . Total Part Build Rating 8 | . . . . . . . . . . . . . . . 8 . Parts Repaired . | . . . . . . . . . . . . . . . . . Time . | . . . . . . . . . . . . . . . . . Parts Recycled . | . . . . . . . . . . . . . . . . . Recycled Matter . | . . . . . . . . . . . . . . . . . Retrieved Matter . | . . . . . . . . . . . . . . . . . Retrieved Components 9 | . . . . 9 . . . . . . . . . . . . Parts Scanalyzed 3 | . . . . . . . . . . 1 . . . . 2 . Part Schematics Acquired 1 | . . . . . . . . . . . . . . . 1 . Parts Damaged 1 | . . . . . . . . . . 1 . . . . . . Bothacking | -11 -10 -10 -10 -8 -7 -7 -7 -6 -6 -6 -6 -6 -6 -6 -5 -5 ------------ Run | Yrd Mat Min Sub Mat Fac Low Low Fac Was Fac Ext Cet Arc Hub Fac Upp Used RIF Installer . | . . . . . . . . . . . . . . . . . Robots Hacked . | . . . . . . . . . . . . . . . . . Non-combat . | . . . . . . . . . . . . . . . . . Combat . | . . . . . . . . . . . . . . . . . Robot Hacks Applied . | . . . . . . . . . . . . . . . . . Relay Couplers Released 3 | . . . . . 3 . . . . . . . . . . . Machine Destruction 3 | . . . . . 3 . . . . . . . . . . . Fabnet Peak Effective % . | . . . . . . . . . . . . . . . . . Robots Rewired 8 | . . . . . . . . . . . 8 . . . . . Allies Hacked . | . . . . . . . . . . . . . . . . . Hacks Repelled . | . . . . . . . . . . . . . . . . . Allies | -11 -10 -10 -10 -8 -7 -7 -7 -6 -6 -6 -6 -6 -6 -6 -5 -5 -------- Run | Yrd Mat Min Sub Mat Fac Low Low Fac Was Fac Ext Cet Arc Hub Fac Upp Total Allies 14 | . . . . . . . . . . . 12 . . . 2 . Largest Group 10 | . . . . . . . . . . . 10 . . . 2 . Highest-Rated Group 412 | . . . . . . . . . . . 412 . . . 82 . Highest-Rated Ally 159 | . . . . . . . . . . . 159 . . . 41 . Total Orders 14 | . . . . . . . . . . . 14 . . . . . STAY 7 | . . . . . . . . . . . 7 . . . . . FOLLOW 7 | . . . . . . . . . . . 7 . . . . . Ally Attacks 156 | . . . . . . . . . . . 138 . . . 18 . Total Damage 4636 | . . . . . . . . . . . 3003 . . . 1633 . Kills 25 | . . . . . . . . . . . 23 . . . 2 . Allies Corrupted 1 | . . . . . . . . . . . . . . . 1 . Allies Melted . | . . . . . . . . . . . . . . . . . Intel | -11 -10 -10 -10 -8 -7 -7 -7 -6 -6 -6 -6 -6 -6 -6 -5 -5 ------- Run | Yrd Mat Min Sub Mat Fac Low Low Fac Was Fac Ext Cet Arc Hub Fac Upp Robot Analysis Total . | . . . . . . . . . . . . . . . . . Derelict Logs Recovered 2 | . . . 1 . . 1 . . . . . . . . . . Drone Launches . | . . . . . . . . . . . . . . . . . Drone Recoveries . | . . . . . . . . . . . . . . . . . Exploration | -11 -10 -10 -10 -8 -7 -7 -7 -6 -6 -6 -6 -6 -6 -6 -5 -5 ------------- Run | Yrd Mat Min Sub Mat Fac Low Low Fac Was Fac Ext Cet Arc Hub Fac Upp Turns Passed 10679 | 133 493 317 1360 621 211 358 105 13 1512 1605 1227 466 712 656 821 69 Spaces Moved 7257 | 97 273 99 798 391 398 780 278 36 1013 900 639 265 370 359 405 156 Core 134 | 55 . . . 7 16 . . . . . . . . . . 56 Treads 4636 | 42 273 99 708 . 20 . . . 855 900 638 56 370 359 316 . Legs 282 | . . . . 72 . . . . . . 1 209 . . . . Wheels 244 | . . . 90 154 . . . . . . . . . . . . Hover . | . . . . . . . . . . . . . . . . . Flight 1961 | . . . . 158 362 780 278 36 158 . . . . . 89 100 Fastest Speed 27 | 50 160 160 110 42 35 35 35 35 27 160 120 120 160 160 40 40 Average Speed 124 | 128 160 160 156 102 48 35 35 35 139 164 167 128 160 160 133 43 Slowest Speed 350 | 200 160 160 240 350 160 35 100 35 165 165 250 160 160 160 160 50 Overloaded Moves . | . . . . . . . . . . . . . . . . . Propulsion Burnouts . | . . . . . . . . . . . . . . . . . Robots Hopped 10 | . . . . 3 1 1 . . 1 . . . . . 4 . Cave-ins Triggered 2 | . . . . . . . . . . . . . . . 2 . Exploration Rate (%) 38 | 6 41 20 35 28 15 70 18 1 97 18 62 88 95 30 12 22 Regions Visited 16 Branch Regions 9 Pre-discovered Areas 1 | . . . 1 . . . . . . . . . . . . . Known Exits Taken 3 | . . . . . . . . . . 1 . . . 1 1 . Unknown Exits Taken 11 | 1 1 1 1 1 1 1 1 . . . 1 1 1 . . . Scrap Searched 11 | . . . 8 . . 2 1 . . . . . . . . . Spaces Dug 137 | . . . . 1 . . . . . 25 109 . . 1 1 . Terrain Destroyed 633 | . . . . 46 4 33 19 . 11 181 250 5 1 3 80 . Melee 2 | . . . . . . . . . . . . . . 1 1 . Projectile 49 | . . . . 10 . . . . 11 10 1 5 1 2 9 . AOE 581 | . . . . 36 4 33 19 . . 170 249 . . . 70 . Terrain Rammed . | . . . . . . . . . . . . . . . . . Walls Destroyed . | . . . . . . . . . . . . . . . . . Machines Disabled . | . . . . . . . . . . . . . . . . . Actions | -11 -10 -10 -10 -8 -7 -7 -7 -6 -6 -6 -6 -6 -6 -6 -5 -5 --------- Run | Yrd Mat Min Sub Mat Fac Low Low Fac Was Fac Ext Cet Arc Hub Fac Upp Total 8391 | 103 298 256 858 508 412 859 282 36 1086 982 765 340 440 396 613 157 Wait 397 | . . 154 4 . . 75 . . . . 21 9 4 . 130 . Move 7222 | 96 272 98 797 384 395 777 277 36 1010 899 638 264 369 358 396 156 Hop 10 | . . . . 3 1 1 . . 1 . . . . . 4 . Pick Up 90 | 1 3 3 10 14 3 . . . 6 24 7 9 7 . 3 . Fast Attach 72 | 6 1 . 3 12 3 1 1 . 18 6 9 6 4 . 2 . Attach 50 | . . . 3 11 2 1 1 . 6 1 9 3 . 1 11 1 Detach 17 | . 1 . 1 1 1 1 1 . 2 1 3 1 . . 4 . Swap 21 | . 1 . 4 3 . . . . . . 2 4 2 1 4 . Drop 96 | . 1 . 8 15 3 . . . 14 12 21 10 10 1 1 . Fire 313 | . 17 1 28 58 1 3 2 . 19 37 20 33 27 16 51 . Melee 50 | . . . . 6 . . . . . . . 1 17 19 7 . Ram 1 | . . . . 1 . . . . . . . . . . . . Kick . | . . . . . . . . . . . . . . . . . Crush 10 | . 2 . . . 3 . . . . 2 3 . . . . . Escape Stasis . | . . . . . . . . . . . . . . . . . Rewire 42 | . . . . . . . . . 10 . 32 . . . . . Trap . | . . . . . . . . . . . . . . . . . Miscellaneous . | . . . . . . . . . . . . . . . . . Route ------- -11/Scrapyard -10/Materials (discovered 2 exits: [*Min x2]) -10/Mines -10/Subcaves -8/Materials -7/Factory -7/Lower Caves -7/Lower Caves -6/Factory (discovered 4 exits: Low x2 / Ext x2) -6/Waste -6/Factory (discovered 8 exits: *Fac x4 / Low x2 / *Ext x2) -6/Extension (discovered 2 exits: *Fac / *Cet) -6/Cetus (discovered 2 exits: *Fac / *Arc) -6/Archives (discovered 3 exits: *Fac / *Hub x2) -6/Hub_04(d) -5/Factory -5/Upper Caves History --------- Turn | Location | Event 18 | -11/Scrapyard | Discovered new exit (range 16) 134 | -11/Scrapyard | Entered Materials 306 | -10/Materials | Build established: Mutant 384 | -10/Materials | Discovered new exit (range 13) 603 | -10/Materials | Discovered new exit (range 12) 627 | -10/Materials | Entered Mines 909 | -10/Mines | Discovered new exit (range 5) 944 | -10/Mines | Entered Subcaves 1036 | -10/Subcaves | Learned location of Zion (-7) 1203 | -10/Subcaves | Discovered new exit (range 6) 1301 | -10/Subcaves | Shifting Twisted Machinery released Mak. Light Armor Plating 1338 | -10/Subcaves | Shifting Twisted Machinery released Barrage Gun 1952 | -10/Subcaves | Ambushed by Subdweller buried in earth 2304 | -10/Subcaves | Entered Materials 2304 | -8/Materials | Evolved 4 slots: Propulsion x2, Utility x2 2571 | -8/Materials | Lost 6 parts (1p3n2w) 2708 | -8/Materials | Core integrity fell below 50% 2916 | -8/Materials | Discovered new exit (range 9) 2925 | -8/Materials | Entered Factory 2925 | -7/Factory | Evolved 2 slots: Utility x2 2973 | -7/Factory | Build established: Scavenger-Mutant 3077 | -7/Factory | Lost 5 parts (3n2w) 3111 | -7/Factory | Discovered new exit (range 6) 3136 | -7/Factory | Entered Lower Caves 3322 | -7/Lower Caves | Core integrity fell below 50% 3326 | -7/Lower Caves | Build established: Mutant 3437 | -7/Lower Caves | Discovered new exit (range 13) 3494 | -7/Lower Caves | Entered another Lower Caves area 3501 | -7/Lower Caves | Core integrity fell below 20% 3513 | -7/Lower Caves | Discovered new exit (range 8) 3599 | -7/Lower Caves | Entered Factory 3599 | -6/Factory | Evolved 2 slots: Utility x2 3602 | -6/Factory | Identified exit to Lower Caves 3602 | -6/Factory | Identified exit to Extension 3612 | -6/Factory | Sucked down chute 3612 | -6/Factory | Entered Waste 3612 | -6/Waste | The area was eerily silent 3809 | -6/Waste | Discovered new exit (range 15) 3821 | -6/Waste | Found Heavy Servo Lattice 4110 | -6/Waste | Build established: Scavenger-Mutant 5124 | -6/Waste | Entered Factory 5145 | -6/Factory | Identified exit to Factory 6280 | -6/Factory | Found Prototype Launcher 6280 | -6/Factory | Identified Scatter Rocket Array 6288 | -6/Factory | Found Scatter Rocket Array 6290 | -6/Factory | Found Scatter Rocket Array 6293 | -6/Factory | Found Scatter Rocket Array 6296 | -6/Factory | Found Scatter Rocket Array 6302 | -6/Factory | Found Scatter Rocket Array 6729 | -6/Factory | Entered Extension 6792 | -6/Extension | Rescued a captive Derelict 6949 | -6/Extension | Rescued a captive Derelict 6959 | -6/Extension | Rescued a captive Derelict 7161 | -6/Extension | Rescued A7 7353 | -6/Extension | Spotted B-75 Beast 7518 | -6/Extension | Spotted B-75 Beast 7534 | -6/Extension | Build established: Commander-Mutant 7556 | -6/Extension | Allies destroyed B-75 Beast 7575 | -6/Extension | Allies destroyed B-75 Beast 7741 | -6/Extension | Found Prototype Protection 7741 | -6/Extension | Identified Med. Regenerative Plating 7894 | -6/Extension | Murdered A7 7904 | -6/Extension | Disrupted transfer network 7906 | -6/Extension | Discovered new exit (range 22) 7908 | -6/Extension | Discovered exit to Factory (range 21) 7920 | -6/Extension | Murdered 4 allies 7956 | -6/Extension | Entered Cetus 7971 | -6/Cetus | Spotted Cetus Guard 7971 | -6/Cetus | Spotted Cetus Guard 7971 | -6/Cetus | Spotted Cetus Guard 7971 | -6/Cetus | Spotted Cetus Guard 7985 | -6/Cetus | Lost 5 parts (3n2w) 8012 | -6/Cetus | Destroyed Cetus Guard 8014 | -6/Cetus | Destroyed Cetus Guard 8018 | -6/Cetus | Destroyed Cetus Guard 8028 | -6/Cetus | Destroyed Cetus Guard 8222 | -6/Cetus | Discovered new exit (range 22) 8252 | -6/Cetus | Spotted Cetus Guard 8252 | -6/Cetus | Spotted Cetus Guard 8252 | -6/Cetus | Spotted Cetus Guard 8252 | -6/Cetus | Spotted Cetus Guard 8254 | -6/Cetus | Discovered exit to Factory (range 21) 8287 | -6/Cetus | Destroyed Cetus Guard 8297 | -6/Cetus | Destroyed Cetus Guard 8309 | -6/Cetus | Destroyed Cetus Guard 8312 | -6/Cetus | Destroyed Cetus Guard 8318 | -6/Cetus | Lost 3 parts (1p2n) 8342 | -6/Cetus | Met Revision 17 8379 | -6/Cetus | Build established: Scavenger-Mutant 8422 | -6/Cetus | Entered Archives 8488 | -6/Archives | Core integrity fell below 50% 8531 | -6/Archives | Discovered new exit (range 22) 8617 | -6/Archives | Unable to access archive contents 8625 | -6/Archives | Discovered new exit (range 21) 8633 | -6/Archives | Unable to access archive contents 8765 | -6/Archives | Discovered exit to Factory (range 22) 8948 | -6/Archives | Unable to access archive contents 9134 | -6/Archives | Entered Hub_04(d) 9217 | -6/Hub_04(d) | Discovered exit to Factory (range 22) 9790 | -6/Hub_04(d) | Entered Factory 9790 | -5/Factory | Evolved 2 slots: Utility x2 9791 | -5/Factory | Identified exit to Upper Caves 9962 | -5/Factory | Fabricated H-66 Slayer (x2) 10185 | -5/Factory | Fabricated Centrium Medium Armor Plating (x1) 10198 | -5/Factory | P-70 Sage assimilated allied Slayer 6a 10349 | -5/Factory | Crushed by falling debris 10349 | -5/Factory | System corruption reached 10% 10526 | -5/Factory | Build established: Hacker-Mutant 10576 | -5/Factory | Crushed by falling debris 10604 | -5/Factory | Core integrity fell below 50% 10611 | -5/Factory | Entered Upper Caves 10638 | -5/Upper Caves | Lost 12 parts (1p1n7u3w) 10652 | -5/Upper Caves | System corruption reached 30% 10661 | -5/Upper Caves | Core integrity fell below 20% 10680 | -5/Upper Caves | Destroyed by G-67 Veteran with Field Laser Last Messages --------------- H-66 Slayer destroyed. O-16 Technician: "IFF HANDSHAKE FAILED. SECURING TERMINAL." System corrupted: Substantial component data lost. K-01 Serf collects debris. LOCATION=UPPER CAVES GOAL=ESCAPE System corrupted: Energy discharge (-27). System corrupted: Matter fused (-6). Adv. KE Penetrator destroyed. System corrupted: Slammed into ceiling. Imp. System Shield destroyed. System corrupted by crushing effect (+3). Nuclear Pulse Thruster destroyed. Imp. Hacking Suite destroyed. Critical hit (Burn: +37). System corrupted: Matter fused (-8). Imp. System Shield destroyed. Critical hit (Burn: +37). Map ----- +----------------------------------------------------+ | ?????????????????????????????????????????????????? | | ?????????????????????????????????????????????????? | | ?????????????????????????????????????????????????? | | ?????????????????????????????????????????????????? | | ?????????????????????????????????????????????????? | | ??????????????????#####??????????????????????????? | | ??????????????????# #?????###?????######??####? | | ??????????????????# ###### #????## #?## #? | | ??????????????????# ## #????# ### #? | | ???????###?????????# ##??## ### #? | | ???????# #??#####??? ##?# ## ## | | ???????# ### ##?????# ### | | ????????# ##????# g | | ?????????# ###### g | | ??????????# g ## | | ??????????# gg ## ####### | | ??????????## ### g## ####????## | | ???????????####?## b ## ##??????## | | ?????????????????# ## ## ## #???????# | | ?????????????????# ### ## #??####?## # | | ????????????????# ### #### #### ####### | | ????????????????# #### ##?# | | ????????????????# ##?# ### | | ????????????????##???# ####### | | ?????????????????????## ##????# ### | | ??????????????????????## @ ##?????# ##?? | | ???????????????????????## #??????# ######## | | ????????????????????????# ###??????# ##??## # | | ????????????????????????# ##???????## ##?## # | | ????????????????????????# ##????????# ### # | | ????????????????????????###?????????# # | | ????????????????????????????????????# | | ?????????????????# ############# | | ??????????????????# | | ???????????????????# | | ???????????????????## ## ### ### | | ???????????????????????????# ##?# | | ???????????????????????????# ##??# | | ???????????????????????????# #??# | | ??????????????????????????# ##?# ## | | ??????????????????????????# #???# ###### | | ??????????????????????????####????########????#### | | ?????????????????????????????????????????????????# | | ?????????????????????????????????????????????????? | | ?????????????????????????????????????????????????? | | ?????????????????????????????????????????????????? | | ?????????????????????????????????????????????????? | | ?????????????????????????????????????????????????? | | ?????????????????????????????????????????????????? | | ?????????????????????????????????????????????????? | +----------------------------------------------------+ Best States ------------- Heat Dissipation 40 Energy Generation 25 Energy Capacity 350 Matter Stores 300 Matter Capacity 300 Sight Range 22 Robot Scan Range 15 Terrain Scan Density 110 ECM Strength 2 EM Shielding 2 Armor Coverage 900 Resistance: KI 20 Propulsion Shielding 66 Evasion (%) 67 Target Analysis 8 Core Analysis 6 Recoil Reduction 4 Offensive Hacking 34 Defensive Hacking 24 Item Schematics ----------------- Centrium Medium Armor Plating | -5/Factory | Scanalyzed Robot Schematics ------------------ None Fabricated ------------ H-66 Slayer | x2 | -5/Factory | Preloaded Centrium Medium Armor Plating | x1 | -5/Factory Alien Tech Used ----------------- None Achievements -------------- Brute Force Collateral Damage Left-hand Path Prison Break Revising The Future Challenges ------------ None Game ------ Seed DeliverySlugMultirail Manual? 0 Play Time 01:59:16 Cumulative 37.3 hours Start 2024.09.28 @ 07:18:42 End 2024.10.01 @ 09:01:11 Sessions 5 Manual Loads 0 Difficulty Rogue Special Mode None Game No. 63 Rogue 63 Adventurer 0 Explorer 0 Win Type - Total 1 Types 1/0/0/0/0/0/0/0/0 Lore% 14 Gallery% 35 Achievement% 27 Wizard Run 0 Options --------- Layout 1 ASCII 0 Keyboard 0 Movement Arrows Keybinds 0 Fullscreen 2 Font 24/Smallcaps Map View 50x35 Zoom Use 53% Tactical HUD 0 Map Filters NONE Filters NONE Steam 1 RUN: 4327280f-6095-47f4-87a7-ea92e560e96f